fUSD/lending_fUSD_20240419
["ID","MTS","AMOUNT","RATE_DAILY","PERIOD"]
[322985306,1713568233984,-408.08146576,0.00015998,2]
[322985307,1713568233993,-9367.02093389,0.00015998,2]
[322985308,1713568234002,-155.74994501,0.00015998,2]
[322985309,1713568234012,-155.0,0.00015998,2]
[322985310,1713568234021,-183.11539804,0.00015998,2]
[322985311,1713568234030,-468.05645362,0.00015998,2]
[322985312,1713568234040,-247.12844832,0.00015998,2]
[322985313,1713568234049,-266.67015602,0.00015998,2]
[322985314,1713568234058,-155.0,0.00015998,2]
[322985315,1713568234067,-155.0,0.00015998,2]
[322985316,1713568234077,-429.66272039,0.00015998,2]
[322985317,1713568234086,-305.07906936,0.00015998,2]
[322985318,1713568234096,-216.00889767,0.00015998,2]
[322985319,1713568234105,-1029.29712014,0.00015998,2]
[322985320,1713568234115,-194.24270021,0.00015998,2]
[322985321,1713568234124,-281.19687612,0.00015998,2]
[322985322,1713568234134,-1133.64537646,0.00015998,2]
[322985323,1713568234143,-15989.50146286,0.00015999,2]
[322985324,1713568234157,-14100.000003,0.00015999,2]
[322985325,1713568234175,-626.71201654,0.00015999,2]
[322985326,1713568234186,-346.48303694,0.00015999,2]
[322985327,1713568234198,-401.82437314,0.00015999,2]
[322985328,1713568234283,-259.86200001,0.00015999,2]
[322985329,1713568234294,-357.4799971,0.00015999,2]
[322985330,1713568234339,-781.95019923,0.00015999,2]
[322985331,1713568234351,-1806.00192747,0.00015999,2]
[322985332,1713568234362,-827.13712285,0.00015999,2]
[322985333,1713568234374,-51027.2343915,0.00015999,2]
[322985334,1713568234383,-1001.1393,0.00015999,2]
[322985335,1713568234393,-2224.1821176,0.00015999,2]
[322985336,1713568234403,-1122.0,0.00016,2]
[322985337,1713568234412,-150271.23278228,0.00016,2]
[322985338,1713568234427,-6970.88873846,0.00016,2]
[322985339,1713568234503,-418.90217464,0.00016,2]
[322985363,1713568238329,-27561.82820925,0.00016,2]
[322985369,1713568238383,-578.9776056,0.00016,2]
[322985370,1713568238394,-633.57,0.00016,2]
[322985371,1713568238444,-18860.02422749,0.00016,2]
[322985372,1713568238503,-835.11710452,0.00016,2]
[322985373,1713568238565,-778287.27674081,0.00016,2]
[322985374,1713568238577,-2863.98064824,0.00016,2]
[322985375,1713568238625,-6628.30439943,0.00016,2]
[322985376,1713568238637,-6164.87350395,0.00016,2]
[322985408,1713568240658,-1194818.6012073,0.00016,2]
[322985409,1713568240698,-380.61307463,0.00016,2]
[322985410,1713568240710,-713.3642934,0.00016,2]
[322985429,1713568243391,-944.0443221,0.00016,2]
[322985436,1713568243451,-555.0,0.00016,2]
[322985438,1713568243469,-1122745.59304968,0.00016,2]
[322985440,1713568243482,-626.4673251,0.00016,2]
[322985443,1713568243493,-5135.2307864,0.00016,2]
[322985446,1713568243553,-6392.1,0.00016,2]
[322985447,1713568243565,-223843.701968,0.00016,2]
[322985448,1713568243577,-2724.16037252,0.00016,2]
[322985449,1713568243724,-3523.4328,0.00016,2]
[322985450,1713568243736,-61630.00546978,0.00016,2]
[322985451,1713568243747,-1220.00000001,0.00016,2]
[322985452,1713568243761,-400.75631753,0.00016,2]
[322985453,1713568243785,-1025.18051412,0.00016,2]
[322985454,1713568244809,-1031.53958,0.00016,2]
[322985456,1713568244872,-5824.55448819,0.00016,2]
[322985457,1713568244884,-2160.96975523,0.00016,2]
[322985468,1713568246458,-306.2680726,0.00015999,2]
[322985469,1713568246468,-12574.8034311,0.00016,2]
[322985470,1713568246480,-1912.9668,0.00016,2]
[322985471,1713568246514,-16946.06194324,0.00016,2]
[322985472,1713568246525,-250.46528874,0.00016,2]
[322985473,1713568246537,-929.40215815,0.00016,2]
[322985474,1713568246575,-932765.15940511,0.00016,2]
[322985475,1713568246586,-63329.99999992,0.00016,2]
[322985476,1713568246639,-155.0,0.00015999,2]
[322985477,1713568246648,-30245.0000009,0.00016,2]
[322985478,1713568246660,-38937.28466056,0.00016,2]
[322985479,1713568246672,-1799.8542,0.00016,2]
[322985480,1713568246695,-1087.3637896,0.00016,2]
[322985487,1713568254772,889.4456517,0.00015199,7]
[322985488,1713568794737,525.25,0.00012834,2]
[322985500,1713569256547,534.71,0.00012534,2]
[322985503,1713569371868,4112.2558288,0.00013,2]
[322985514,1713569431631,-262.16181551,0.00013693,2]
[322985515,1713569431641,-331.03112818,0.00013694,2]
[322985516,1713569431650,-1250.0,0.000137,2]
[322985517,1713569431659,-1234.07,0.00014502,2]
[322985518,1713569431669,-250.0,0.00014555,2]
[322985519,1713569431678,-640.0,0.00014576,2]
[322985520,1713569431687,-903.0,0.0001463,2]
[322985521,1713569431697,-181.32,0.00014655,2]
[322985522,1713569431708,-1111.55,0.00014657,2]
[322985523,1713569431717,-17968.61,0.00014673,2]
[322985524,1713569431727,-534.71,0.00014798,2]
[322985525,1713569431739,-499.99,0.00014816,2]
[322985526,1713569431749,-1250.0,0.00015,2]
[322985527,1713569431758,-18637.64,0.00015,2]
[322985528,1713569431768,-617.26050281,0.00015009,2]
[322985529,1713569431778,-360.0,0.0001501,2]
[322985530,1713569431787,-250.86846927,0.00015299,2]
[322985531,1713569431796,-871.3208,0.00015356,2]
[322985532,1713569431805,-1172.153,0.00015356,2]
[322985533,1713569431815,-6769.3144,0.00015356,2]
[322985534,1713569431824,-434.5472,0.00015356,2]
[322985535,1713569431837,-9671.5591,0.00015356,2]
[322985536,1713569431846,-1853.6911,0.00015356,2]
[322985537,1713569431856,-924.9942,0.00015356,2]
[322985538,1713569431865,-14478.3407,0.00015356,2]
[322985539,1713569431875,-13880.275,0.00015357,2]
[322985540,1713569431885,-251.97383923,0.00015454,2]
[322985541,1713569431894,-2131.75221398,0.00015454,2]
[322985542,1713569431903,-3718.18327738,0.00015454,2]
[322985543,1713569431912,-165.08637651,0.00015454,2]
[322985544,1713569431922,-201.18547988,0.00015454,2]
[322985545,1713569431931,-155.0,0.00015454,2]
[322985546,1713569431940,-156.40548215,0.00015454,2]
[322985547,1713569431950,-266.93732489,0.00015454,2]
[322985548,1713569431959,-155.0,0.00015454,2]
[322985549,1713569431969,-155.0,0.00015454,2]
[322985550,1713569431979,-365.5691864,0.00015454,2]
[322985551,1713569431989,-157.23873025,0.00015454,2]
[322985552,1713569431999,-1013.90044479,0.00015454,2]
[322985553,1713569432010,-195.24769107,0.00015454,2]
[322985554,1713569432018,-1742.56076105,0.00015454,2]
[322985555,1713569432027,-306.82378869,0.00015454,2]
[322985556,1713569432038,-155.319273,0.00015454,2]
[322985557,1713569432054,-342.81596001,0.00015454,2]
[322985558,1713569432065,-283.80896389,0.00015454,2]
[322985559,1713569432074,-155.46859804,0.00015454,2]
[322985560,1713569432085,-156.6652945,0.00015454,2]
[322985561,1713569432097,-160.38595136,0.00015454,2]
[322985562,1713569432108,-155.0,0.00015454,2]
[322985563,1713569432118,-204.36282924,0.00015454,2]
[322985564,1713569432130,-811.41448345,0.00015454,2]
[322985565,1713569432141,-155.0,0.00015454,2]
[322985566,1713569432153,-526.69659646,0.00015455,2]
[322985567,1713569432165,-2570.66836,0.00015455,2]
[322985568,1713569432175,-60161.43263216,0.00015456,2]
[322985569,1713569432221,-2144.35715229,0.00015456,2]
[322985570,1713569432272,-4879.85940809,0.00015456,2]
[322985585,1713569437867,-638.966744,0.00014437,2]
[322985586,1713569437926,-23241.033256,0.00014437,2]
[322985587,1713569437935,-169.83,0.00014437,2]
[322985588,1713569437944,-617.26050281,0.00015,2]
[322985589,1713569437954,-78787.08623181,0.00015456,2]
[322985590,1713569437963,-1923.04941809,0.00015457,2]
[322985591,1713569437973,-155.0,0.000155,2]
[322985592,1713569437982,-150.0,0.000155,2]
[322985593,1713569437991,-500.0,0.00015517,2]
[322985594,1713569438000,-903.0,0.00015589,2]
[322985595,1713569438010,-10000.0,0.00015616,2]
[322985596,1713569438020,-286.6927,0.000158,2]
[322985597,1713569438029,-5293.27369678,0.000158,2]
[322985598,1713569438039,-248.73042496,0.000158,2]
[322985599,1713569438050,-3044.0,0.000158,2]
[322985600,1713569438062,-5293.27369673,0.00015814,2]
[322985601,1713569438071,-500.0,0.00015821,2]
[322985602,1713569438081,-248.73042494,0.00015825,2]
[322985603,1713569438094,-5293.27369673,0.00015829,2]
[322985604,1713569438104,-500.0,0.0001583,2]
[322985605,1713569438113,-167.71,0.00015831,2]
[322985606,1713569438122,-167.42,0.00015831,2]
[322985607,1713569438133,-500.0,0.00015838,2]
[322985608,1713569438144,-154.74520019,0.0001584,2]
[322985609,1713569438153,-3000.0,0.0001584,2]
[322985610,1713569438162,-5293.27369673,0.00015843,2]
[322985611,1713569438171,-500.0,0.00015847,2]
[322985612,1713569438181,-248.73042494,0.0001585,2]
[322985613,1713569438191,-500.0,0.00015856,2]
[322985614,1713569438199,-5293.27369673,0.00015857,2]
[322985615,1713569438209,-500.0,0.00015865,2]
[322985616,1713569438218,-200.0,0.00015871,2]
[322985617,1713569438229,-5293.27369673,0.00015871,2]
[322985618,1713569438238,-200.0,0.00015872,2]
[322985619,1713569438247,-200.0,0.00015872,2]
[322985620,1713569438257,-500.0,0.00015872,2]
[322985621,1713569438266,-200.0,0.00015872,2]
[322985622,1713569438275,-500.0,0.00015874,2]
[322985623,1713569438285,-248.73042494,0.00015875,2]
[322985624,1713569438294,-500.0,0.00015882,2]
[322985625,1713569438303,-2620.24562786,0.00015884,2]
[322985626,1713569438312,-5293.27369673,0.00015886,2]
[322985627,1713569438322,-5016.54304887,0.00015889,2]
[322985628,1713569438332,-165.4659354,0.00015889,2]
[322985629,1713569438344,-150.68,0.0001589,2]
[322985630,1713569438355,-185.04660132,0.0001589,2]
[322985631,1713569438365,-297.235279,0.0001589,2]
[322985632,1713569438374,-500.0,0.00015891,2]
[322985633,1713569438383,-160.0,0.00015891,2]
[322985634,1713569438393,-171.2243799,0.00015898,2]
[322985635,1713569438402,-10000.0,0.00015899,2]
[322985636,1713569438411,-10000.0,0.00015899,2]
[322985637,1713569438419,-10000.0,0.000159,2]
[322985638,1713569438431,-500.0,0.000159,2]
[322985639,1713569438441,-186719.4675,0.000159,2]
[322985640,1713569438450,-1000.0,0.000159,2]
[322985641,1713569438459,-58000.0,0.000159,2]
[322985642,1713569438469,-7500.0,0.000159,2]
[322985643,1713569438478,-5293.27369673,0.000159,2]
[322985644,1713569438486,-248.73042494,0.000159,2]
[322985645,1713569438496,-4976.66187215,0.000159,2]
[322985646,1713569438506,-160.0,0.000159,2]
[322985647,1713569438515,-1140.91085348,0.000159,2]
[322985648,1713569438525,-2020.01087487,0.000159,2]
[322985649,1713569438534,-11978.67514985,0.000159,2]
[322985650,1713569438543,-67409.5891694,0.000159,2]
[322985651,1713569438552,-156.62064813,0.000159,2]
[322985652,1713569438561,-348.49045982,0.000159,2]
[322985653,1713569438571,-181.9,0.00015926,2]
[322985654,1713569438580,-5016.5430488,0.0001593,2]
[322985655,1713569438591,-156.95336512,0.00015956,2]
[322985656,1713569438601,-5016.5430488,0.00015971,2]
[322985657,1713569438610,-150.68,0.0001598,2]
[322985658,1713569438619,-157.042008,0.00015985,2]
[322985659,1713569438628,-10000.0,0.00015986,2]
[322985660,1713569438637,-157.042008,0.00015986,2]
[322985661,1713569438646,-1649.3428681,0.00015987,2]
[322985662,1713569438655,-388.7196664,0.00015987,2]
[322985663,1713569438665,-45355.2510048,0.00015987,2]
[322985664,1713569438674,-15516.4463534,0.00015987,2]
[322985665,1713569438683,-2363.6775968,0.00015987,2]
[322985666,1713569438692,-6500.0172958,0.00015987,2]
[322985667,1713569438701,-5499.0020403,0.00015987,2]
[322985668,1713569438711,-46400.5246868,0.00015987,2]
[322985669,1713569438721,-1465.3467231,0.00015987,2]
[322985670,1713569438731,-10000.0,0.00015989,2]
[322985671,1713569438742,-4493.78828139,0.00015989,2]
[322985672,1713569438753,-1371.8404528,0.00015989,2]
[322985673,1713569438762,-1094.3380374,0.00015989,2]
[322985674,1713569438772,-816.835622,0.00015989,2]
[322985675,1713569438781,-539.3332067,0.00015989,2]
[322985676,1713569438790,-388.7196664,0.00015989,2]
[322985677,1713569438799,-388.7196664,0.00015989,2]
[322985678,1713569438808,-388.7196664,0.00015989,2]
[322985679,1713569438818,-388.7196664,0.00015989,2]
[322985680,1713569438828,-37807.6965045,0.00015989,2]
[322985681,1713569438840,-30260.1420042,0.00015989,2]
[322985682,1713569438850,-22712.5875039,0.00015989,2]
[322985683,1713569438859,-15165.0330035,0.00015989,2]
[322985684,1713569438869,-12934.3589014,0.00015989,2]
[322985685,1713569438878,-10352.2714493,0.00015989,2]
[322985686,1713569438888,-7770.1839973,0.00015989,2]
[322985687,1713569438897,-5188.0965452,0.00015989,2]
[322985688,1713569438906,-1970.338676,0.00015989,2]
[322985689,1713569438916,-1576.9997552,0.00015989,2]
[322985690,1713569438925,-1183.6608344,0.00015989,2]
[322985691,1713569438935,-790.3219136,0.00015989,2]
[322985692,1713569438944,-5418.3512548,0.00015989,2]
[322985693,1713569438953,-4336.6852138,0.00015989,2]
[322985694,1713569438962,-3255.0191728,0.00015989,2]
[322985695,1713569438971,-2173.3531318,0.00015989,2]
[322985696,1713569438981,-6166.4512973,0.00015989,2]
[322985697,1713569439006,-6833.9005544,0.00015989,2]
[322985698,1713569439032,-7501.3498114,0.00015989,2]
[322985699,1713569439043,-8168.7990685,0.00015989,2]
[322985700,1713569439057,-48200.3519717,0.00015989,2]
[322985701,1713569439068,-50000.1792566,0.00015989,2]
[322985702,1713569439078,-51800.0065415,0.00015989,2]
[322985703,1713569439091,-53599.8338265,0.00015989,2]
[322985704,1713569439102,-1522.185973,0.00015989,2]
[322985705,1713569439112,-1579.0252228,0.00015989,2]
[322985706,1713569439124,-1635.8644726,0.00015989,2]
[322985707,1713569439136,-1692.7037224,0.00015989,2]
[322985708,1713569439146,-1159.0,0.0001599,2]
[322985709,1713569439155,-347605.11070498,0.0001599,2]
[322985710,1713569439166,-150.68,0.0001599,2]
[322985711,1713569439176,-150.68,0.0001599,2]
[322985712,1713569439186,-150.68,0.0001599,2]
[322985713,1713569439195,-150.68,0.0001599,2]
[322985714,1713569439205,-150.68,0.0001599,2]
[322985715,1713569439216,-185.04660132,0.0001599,2]
[322985716,1713569439225,-185.04660132,0.0001599,2]
[322985717,1713569439234,-222.00284026,0.00015998,2]
[322985718,1713569439243,-3895.21912398,0.00015999,2]
[322985719,1713569439252,-150.01,0.00015999,2]
[322985720,1713569439262,-4516.93343116,0.00015999,2]
[322985721,1713569439271,-1500.0,0.00015999,2]
[322985722,1713569439280,-977713.91998972,0.00016,2]
[322985723,1713569439293,-163070.13077129,0.00016,2]
[322985735,1713569442574,-302.0,0.00015989,2]
[322985741,1713569442789,-741.0,0.00015989,2]
[322985742,1713569442799,-177.90095397,0.00015999,2]
[322985743,1713569442808,-6908.84584603,0.00016,2]
[322985744,1713569442898,-2189.73762716,0.00016,2]
[322985758,1713569445788,-336.76686752,0.000159,2]
[322985759,1713569445798,-199.98416041,0.00015999,2]
[322985760,1713569445810,-63.86946819,0.00015999,2]
[322985761,1713569445819,-443.30653181,0.00015999,2]
[322985762,1713569445831,-333.70821044,0.00015999,2]
[322985776,1713569773949,508.22,0.00012349,2]
[322985780,1713570287112,482.8,0.00012338,2]
[322985802,1713570631748,-1711.2489,0.00014137,2]
[322985803,1713570631761,-512.0,0.00014195,2]
[322985804,1713570631774,-1724.28,0.00014237,2]
[322985805,1713570631787,-250.0,0.00014237,2]
[322985806,1713570631799,-177.96,0.00014254,2]
[322985807,1713570631812,-186.36,0.00014259,2]
[322985808,1713570631822,-150.7511,0.00014259,2]
[322985809,1713570631870,-617.92920426,0.00014259,2]
[322985810,1713570631939,-818.26057678,0.00014259,2]
[322985811,1713570631980,-485.80288671,0.00014259,2]
[322985812,1713570632010,-286.634,0.00014259,2]
[322985813,1713570632026,-5438.39379598,0.00014259,2]
[322985814,1713570632044,-16092.22843627,0.00014259,2]
[322985815,1713570632055,-488.0,0.00014265,2]
[322985816,1713570632066,-1299.65,0.00014268,2]
[322985817,1713570632077,-500.0,0.00014268,2]
[322985818,1713570632087,-482.8,0.00014602,2]
[322985819,1713570632098,-664.17,0.00014656,2]
[322985820,1713570632109,-930.0,0.00014658,2]
[322985821,1713570632120,-150.99,0.00014658,2]
[322985822,1713570632131,-499.99,0.00014658,2]
[322985823,1713570632142,-358.44,0.00014658,2]
[322985824,1713570632154,-685.53965,0.00015,2]
[322985827,1713570632165,-1250.0,0.00015,2]
[322985830,1713570632176,-10208.97,0.00015,2]
[322985831,1713570632186,-6826.56,0.00015,2]
[322985832,1713570632198,-1251.46309536,0.00015198,2]
[322985833,1713570632209,-300.0,0.000152,2]
[322985834,1713570632220,-827.94,0.000152,2]
[322985835,1713570632233,-527.43,0.000152,2]
[322985836,1713570632245,-150.0,0.000152,2]
[322985837,1713570632257,-700.46,0.000152,2]
[322985838,1713570632269,-270.11,0.000152,2]
[322985839,1713570632282,-387.49,0.00015208,2]
[322985840,1713570632294,-387.49,0.00015212,2]
[322985841,1713570632305,-387.49,0.00015216,2]
[322985842,1713570632317,-387.49,0.0001522,2]
[322985843,1713570632329,-387.49,0.00015224,2]
[322985844,1713570632340,-387.49,0.00015228,2]
[322985845,1713570632351,-387.49,0.00015232,2]
[322985846,1713570632363,-387.49,0.00015236,2]
[322985847,1713570632375,-387.49,0.0001524,2]
[322985848,1713570632387,-387.49,0.00015244,2]
[322985849,1713570632399,-387.49,0.00015248,2]
[322985850,1713570632411,-387.49,0.00015252,2]
[322985851,1713570632426,-635.0117,0.00015255,2]
[322985852,1713570632438,-387.49,0.00015256,2]
[322985853,1713570632451,-500.0,0.00015256,2]
[322985854,1713570632463,-1748.0918,0.00015256,2]
[322985855,1713570632475,-387.49,0.0001526,2]
[322985856,1713570632486,-387.49,0.00015264,2]
[322985857,1713570632497,-387.49,0.00015268,2]
[322985858,1713570632508,-387.49,0.00015272,2]
[322985859,1713570632519,-387.49,0.00015276,2]
[322985860,1713570632532,-387.49,0.0001528,2]
[322985861,1713570632543,-387.49,0.00015284,2]
[322985862,1713570632554,-800.0,0.00015315,2]
[322985863,1713570632565,-800.0,0.00015315,2]
[322985864,1713570632577,-800.0,0.00015315,2]
[322985865,1713570632590,-1405.14083208,0.00015339,4]
[322985866,1713570632602,-2620.24562786,0.0001534,2]
[322985867,1713570632613,-377.92,0.00015345,3]
[322985868,1713570632624,-3453.88,0.00015346,2]
[322985869,1713570632636,-157.83654128,0.00015354,2]
[322985870,1713570632648,-227.26443989,0.00015354,2]
[322985871,1713570632660,-4716.5472,0.00015354,2]
[322985872,1713570632672,-155.0,0.00015354,2]
[322985873,1713570632683,-257.12442546,0.00015355,2]
[322985874,1713570632694,-78787.08623181,0.00015355,2]
[322985875,1713570632706,-20091.9704,0.00015356,2]
[322985876,1713570632717,-212446.82125786,0.00015356,2]
[322985877,1713570633574,-9233.52819605,0.00015356,2]
[322985878,1713570633587,-502.14,0.00015356,2]
[322985879,1713570633600,-22817.51054609,0.00015356,2]
[322985880,1713570633611,-1000.0,0.00015356,2]
[322985881,1713570633621,-681.17948523,0.00015382,2]
[322985882,1713570633632,-155.0,0.00015456,2]
[322985883,1713570633643,-408.10113394,0.00015456,2]
[322985884,1713570633653,-1035.97516962,0.00015456,2]
[322985885,1713570633663,-1923.04941809,0.00015457,2]
[322985886,1713570633675,-155.0,0.000155,2]
[322985887,1713570633685,-150.0,0.000155,2]
[322985888,1713570633696,-10000.0,0.00015616,2]
[322985889,1713570633706,-930.0,0.00015617,2]
[322985890,1713570633717,-151.23,0.00015624,2]
[322985891,1713570633727,-3453.88,0.00015732,2]
[322985892,1713570633738,-500.0,0.00015733,2]
[322985893,1713570633748,-500.0,0.00015742,2]
[322985894,1713570633759,-500.0,0.0001575,2]
[322985895,1713570633770,-500.0,0.00015759,2]
[322985896,1713570633783,-500.0,0.00015768,2]
[322985897,1713570633793,-500.0,0.00015777,2]
[322985898,1713570633803,-500.0,0.00015786,2]
[322985899,1713570633814,-5800.0,0.0001579,2]
[322985900,1713570633825,-181.9,0.00015791,2]
[322985901,1713570633836,-500.0,0.00015794,2]
[322985902,1713570633846,-5800.0,0.00015798,2]
[322985903,1713570633856,-3044.0,0.000158,2]
[322985904,1713570633867,-707.0,0.000158,2]
[322985905,1713570633878,-286.6296562,0.000158,2]
[322985906,1713570633888,-500.0,0.00015803,2]
[322985907,1713570633899,-5800.0,0.00015806,2]
[322985908,1713570633909,-500.0,0.00015812,2]
[322985909,1713570633921,-5800.0,0.00015815,2]
[322985910,1713570633932,-500.0,0.00015821,2]
[322985911,1713570633942,-5800.0,0.00015823,2]
[322985912,1713570633953,-286.6296562,0.00015825,2]
[322985913,1713570633964,-500.0,0.0001583,2]
[322985914,1713570633974,-167.56,0.00015831,2]
[322985915,1713570633986,-5800.0,0.00015832,2]
[322985916,1713570633997,-500.0,0.00015838,2]
[322985917,1713570634008,-154.74520019,0.0001584,2]
[322985918,1713570634019,-5800.0,0.00015841,2]
[322985919,1713570634033,-500.0,0.00015847,2]
[322985920,1713570634044,-5800.0,0.00015849,2]
[322985921,1713570634055,-286.6296562,0.0001585,2]
[322985922,1713570634066,-500.0,0.00015856,2]
[322985923,1713570634077,-5800.0,0.00015858,2]
[322985924,1713570634088,-500.0,0.00015865,2]
[322985925,1713570634099,-5800.0,0.00015866,2]
[322985926,1713570634109,-1000.0,0.00015871,2]
[322985927,1713570634121,-200.0,0.00015872,2]
[322985928,1713570634131,-1000.0,0.00015872,2]
[322985929,1713570634142,-200.0,0.00015872,2]
[322985930,1713570634153,-500.0,0.00015872,2]
[322985931,1713570634164,-200.0,0.00015872,2]
[322985932,1713570634175,-500.0,0.00015874,2]
[322985933,1713570634186,-5800.0,0.00015874,2]
[322985934,1713570634197,-286.6296562,0.00015875,2]
[322985935,1713570634207,-500.0,0.00015882,2]
[322985936,1713570634219,-5800.0,0.00015883,2]
[322985937,1713570634229,-172.05665628,0.00015889,2]
[322985938,1713570634240,-7355.68036032,0.00015889,2]
[322985939,1713570634251,-165.4659354,0.00015889,2]
[322985940,1713570634261,-4778.23333124,0.00015889,2]
[322985941,1713570634277,-1925.70000001,0.00015889,2]
[322985946,1713570637884,-771.07115909,0.00015889,2]
[322985947,1713570637897,-24.99550966,0.00015889,2]
[322985948,1713570637906,-245.50809407,0.0001589,2]
[322985949,1713570637916,-150.72,0.0001589,2]
[322985950,1713570637926,-460.83804449,0.0001589,2]
[322985951,1713570637993,-2993.04195551,0.0001589,2]
[322985952,1713570638003,-297.235279,0.0001589,2]
[322985953,1713570638012,-500.0,0.00015891,2]
[322985954,1713570638021,-160.0,0.00015891,2]
[322985955,1713570638035,-5800.0,0.00015891,2]
[322985956,1713570638045,-172.05665627,0.00015895,2]
[322985957,1713570638054,-10000.0,0.00015899,2]
[322985958,1713570638063,-10000.0,0.000159,2]
[322985959,1713570638072,-500.0,0.000159,2]
[322985960,1713570638081,-5800.0,0.000159,2]
[322985961,1713570638090,-58000.0,0.000159,2]
[322985962,1713570638098,-1000.0,0.000159,2]
[322985964,1713570638107,-4976.66187215,0.000159,2]
[322985966,1713570638117,-172.05665627,0.000159,2]
[322985968,1713570638125,-160.0,0.000159,2]
[322985970,1713570638134,-58000.0,0.000159,2]
[322985972,1713570638143,-286.6296562,0.000159,2]
[322985974,1713570638153,-3057.41325833,0.000159,2]
[322985976,1713570638162,-1000.0,0.000159,2]
[322985978,1713570638173,-67741.46319984,0.000159,2]
[322985980,1713570638183,-348.49045982,0.000159,2]
[322985984,1713570638193,-1302.22307132,0.000159,2]
[322985987,1713570638203,-7355.68036031,0.00015955,2]
[322985990,1713570638212,-156.95336512,0.00015956,2]
[322985991,1713570638222,-512.0,0.00015969,2]
[322985992,1713570638233,-3453.88,0.00015977,2]
[322985993,1713570638243,-3453.88,0.00015979,2]
[322985994,1713570638254,-3453.88,0.00015979,2]
[322985995,1713570638264,-3453.88,0.00015979,2]
[322985996,1713570638275,-10000.0,0.00015986,2]
[322985997,1713570638292,-41712.6314754,0.00015987,2]
[322985998,1713570638303,-9731.7770298,0.00015987,2]
[322985999,1713570638312,-3739.7149477,0.00015987,2]
[322986000,1713570638323,-52776.8088668,0.00015987,2]
[322986001,1713570638333,-261.83079248,0.00015987,2]
[322986002,1713570638342,-357.6161572,0.00015987,2]
[322986003,1713570638351,-3508.7663346,0.00015987,2]
[322986004,1713570638361,-956.0,0.00015988,2]
[322986005,1713570638371,-10000.0,0.00015988,2]
[322986006,1713570638381,-10000.0,0.00015988,2]
[322986007,1713570638392,-4493.78828139,0.00015988,2]
[322986008,1713570638402,-47173.9189306,0.00015989,2]
[322986009,1713570638412,-52635.2063858,0.00015989,2]
[322986010,1713570638425,-58096.493841,0.00015989,2]
[322986011,1713570638436,-63557.7812962,0.00015989,2]
[322986012,1713570638446,-10970.506782,0.00015989,2]
[322986013,1713570638455,-12209.2365342,0.00015989,2]
[322986014,1713570638466,-13447.9662864,0.00015989,2]
[322986015,1713570638476,-14686.6960386,0.00015989,2]
[322986016,1713570638486,-4215.7324475,0.00015989,2]
[322986017,1713570638496,-4691.7499473,0.00015989,2]
[322986018,1713570638508,-5167.7674471,0.00015989,2]
[322986019,1713570638518,-5643.7849469,0.00015989,2]
[322986020,1713570638535,-59305.1577824,0.00015989,2]
[322986021,1713570638545,-65833.506698,0.00015989,2]
[322986022,1713570638555,-72361.8556136,0.00015989,2]
[322986023,1713570638565,-78890.2045292,0.00015989,2]
[322986024,1713570638576,-403.9850318,0.00015989,2]
[322986025,1713570638586,-450.3539065,0.00015989,2]
[322986026,1713570638596,-496.7227811,0.00015989,2]
[322986027,1713570638606,-543.0916557,0.00015989,2]
[322986028,1713570638616,-3985.6276114,0.00015989,2]
[322986029,1713570638872,-4462.4888882,0.00015989,2]
[322986030,1713570638899,-4939.350165,0.00015989,2]
[322986031,1713570638908,-5416.2114418,0.00015989,2]
[322986032,1713570638918,-245.50809407,0.0001599,2]
[322986033,1713570638928,-245.50809407,0.0001599,2]
[322986034,1713570638937,-150.72,0.0001599,2]
[322986035,1713570638949,-150.72,0.0001599,2]
[322986036,1713570638958,-150.72,0.0001599,2]
[322986037,1713570638968,-150.72,0.0001599,2]
[322986038,1713570638977,-150.72,0.0001599,2]